bitfinex-derivatives/quotes_SOLF0:USTF0_20241002
["timestamp","ask_amount","ask_price","bid_price","bid_amount"]
[1727828175170,2.7748,144.18,144.13,1.3331]
[1727828175676,16.63,144.21,144.13,17.9631]
[1727828175973,2.7744,144.2,144.13,17.9631]
[1727828176370,2.7742,144.21,144.17,2.7749]
[1727828176578,1.352,144.22,144.13,17.9631]
[1727828177077,2.7745,144.2,144.16,2.775]
[1727828177378,2.7745,144.2,144.13,17.9631]
[1727828177571,16.63,144.21,144.13,17.9631]
[1727828177776,16.63,144.21,144.11,0.12502]
[1727828177777,16.63,144.19,144.11,16.75502]
[1727828178076,16.63,144.19,144.11,0.12502]
[1727828178281,16.63,144.19,144.11,16.75502]
[1727828178574,2.7748,144.18,144.14,2.7753]
[1727828179175,2.7749,144.17,144.14,2.7753]
[1727828179773,2.7749,144.17,144.13,2.7755]
[1727828180881,2.7749,144.17,144.11,16.75502]
[1727828180882,2.7747,144.18,144.14,2.7754]
[1727828182080,16.63,144.21,144.14,2.7754]
[1727828182282,2.7749,144.17,144.14,2.7754]
[1727828182479,2.7749,144.17,144.11,16.75502]
[1727828182681,0.91,144.16,144.13,2.7755]
[1727828182874,0.91,144.16,144.13,16.63]
[1727828183184,0.91,144.16,144.15,2.7753]
[1727828189280,0.12502,144.23,144.15,20.14117389]
[1727828189590,0.12502,144.23,144.17,16.63]
[1727828190086,2.89892,144.23,144.17,16.63]
[1727828190391,0.12502,144.23,144.17,16.63]
[1727828190688,16.75502,144.23,144.13,16.63]
[1727828190888,16.75502,144.23,144.11,0.12502]
[1727828190889,16.63,144.21,144.11,16.75502]
[1727828191180,1.3203,144.2,144.11,16.75502]
[1727828191589,2.7749,144.18,144.14,2.7753]
[1727828192685,1.3203,144.2,144.11,16.75502]
[1727828192874,2.775,144.17,144.14,2.7754]
[1727828193079,1.3203,144.2,144.11,16.75502]
[1727828194086,16.63,144.19,144.11,0.12502]
[1727828194290,16.63,144.17,144.11,0.12502]
[1727828194795,2.7756,144.14,144.11,0.12502]
[1727828196780,2.7757,144.13,144.11,0.12502]
[1727828197178,16.63,144.15,144.11,0.12502]
[1727828197386,17.9502,144.16,144.11,0.12502]
[1727828197585,1.3202,144.16,144.11,0.12502]
[1727828197787,4.0954,144.16,144.11,0.12502]
[1727828198185,1.3202,144.16,144.12,2.7758]
[1727828198688,2.7754,144.15,144.11,0.12502]
[1727828198989,2.7754,144.15,144.11,2.90092]
[1727828200291,2.7754,144.14,144.11,2.90092]
[1727828200682,21.40706588,144.16,144.11,0.12502]
[1727828200886,16.63,144.15,144.11,0.12502]
[1727828201094,16.63,144.15,144.05,0.12502]
[1727828201386,16.63,144.15,144.05,16.75502]
[1727828201590,2.7759,144.12,144.05,20.17440555]
[1727828201981,3.49851068,144.14,144.05,20.17440555]
[1727828202183,2.7761,144.11,144.07,2.7766]
[1727828202586,3.49851068,144.14,144.07,2.7766]
[1727828202887,16.63,144.11,144.05,0.12502]
[1727828203480,2.7767,144.08,144.05,2.90212]
[1727828203679,16.63,144.11,144.05,0.12502]
[1727828203987,1.3184,144.13,144.05,0.12502]
[1727828204193,17.9484,144.13,144.05,0.12502]
[1727828204887,2.7764,144.1,144.06,2.7769]
[1727828205292,2.7766,144.09,144.05,2.90212]
[1727828207287,2.777,144.06,144.05,0.12502]
[1727828210490,2.7775,144.04,144.0,2.7781]
[1727828211291,17.9125,144.07,143.99,16.75502]
[1727828211486,1.2825,144.07,143.99,16.75502]
[1727828211996,2.7771,144.06,144.02,2.7777]
[1727828212386,1.2825,144.07,144.01,16.63]
[1727828212590,4.0594,144.07,144.03,2.7774]
[1727828212789,1.2825,144.07,144.03,2.7774]
[1727828213202,1.2825,144.07,144.02,2.7776]
[1727828213389,1.2825,144.07,144.01,16.63]
[1727828214098,4.0594,144.07,144.03,2.7774]
[1727828214293,1.2825,144.07,144.01,16.63]
[1727828214800,1.2825,144.07,143.99,16.75502]
[1727828215502,2.7773,144.05,144.0,2.778]
[1727828215699,2.6665,144.07,144.0,2.778]
[1727828216699,2.7772,144.05,144.0,2.778]
[1727828217402,2.7774,144.04,144.0,2.778]
[1727828217901,3.51400034,144.06,143.99,16.75502]
[1727828218405,2.7774,144.04,144.0,2.778]
[1727828220498,2.778,144.01,143.99,0.12502]
[1727828220695,16.63,144.03,143.99,0.12502]
[1727828221400,3.51400034,144.06,143.99,0.12502]
[1727828221401,16.63,144.05,143.99,0.12502]
[1727828221815,2.7775,144.04,143.99,2.90332]
[1727828221994,16.63,144.05,143.99,2.90332]
[1727828222193,3.5131326,144.04,143.99,2.90332]
[1727828222393,3.5131326,144.04,143.99,0.12502]
[1727828222594,16.63,144.05,143.99,0.12502]
[1727828222595,3.48291285,144.03,143.99,0.12502]
[1727828222800,2.6665,144.07,143.99,0.12502]
[1727828223003,2.6665,144.07,144.01,2.7779]
[1727828223208,2.6665,144.07,143.99,16.75502]
[1727828223405,2.7773,144.05,143.99,16.75502]
[1727828223606,2.6665,144.07,144.01,2.7778]
[1727828224008,2.7771,144.06,144.01,2.7778]
[1727828224200,2.6665,144.07,144.01,2.7778]
[1727828224694,2.7773,144.05,144.01,2.7778]
[1727828225603,2.7774,144.04,144.01,2.7778]
[1727828226205,2.6665,144.07,144.01,2.7778]
[1727828226500,2.7773,144.05,144.01,2.7778]
[1727828227406,4.1293,144.08,144.03,16.63]
[1727828227816,1.3527,144.08,144.03,16.63]
[1727828228115,17.9827,144.08,143.99,16.75502]
[1727828228334,1.286,144.07,143.99,0.12502]
[1727828228605,16.63,144.06,143.99,0.12502]
[1727828228808,21.45203604,144.06,143.99,0.12502]
[1727828228998,2.7781,144.01,143.99,0.12502]
[1727828229810,16.63,144.02,143.93,0.12502]
[1727828230012,2.7976,144.0,143.93,0.12502]
[1727828230310,2.7976,144.0,143.94,16.63]
[1727828230511,16.63,144.04,143.94,16.63]
[1727828230712,2.7781,144.01,143.94,19.4092]
[1727828231016,16.63,144.03,143.94,19.4092]
[1727828231213,16.63,144.03,143.94,16.63]
[1727828231705,16.63,144.01,143.93,0.12502]
[1727828232009,16.63,143.97,143.93,0.12502]
[1727828232214,2.7976,143.96,143.93,0.12502]
[1727828232415,3.53818467,143.95,143.93,0.12502]
[1727828232822,2.7793,143.94,143.93,0.12502]
[1727828233311,16.63,143.94,143.88,0.12518]
[1727828233509,2.7802,143.9,143.88,0.12518]
[1727828234508,16.63,143.94,143.88,0.12518]
[1727828234716,3.53818467,143.95,143.88,16.75518]
[1727828235115,2.7793,143.94,143.89,2.7802]
[1727828235722,5.5766,143.96,143.91,2.7798]
[1727828235932,5.5766,143.96,143.92,16.63]
[1727828235933,1.406,143.96,143.92,16.63]
[1727828236111,0.12502,143.99,143.92,16.63]
[1727828236610,2.7786,143.98,143.93,2.7794]
[1727828237018,2.779,143.96,143.91,19.4098]
[1727828237314,16.75502,143.99,143.91,19.4098]
[1727828237518,1.402,143.98,143.91,19.4098]
[1727828237723,3.48575507,143.97,143.91,19.4098]
[1727828238224,2.7791,143.95,143.91,19.4098]
[1727828238608,3.48575507,143.97,143.89,16.63]
[1727828238818,2.7797,143.93,143.88,0.12518]
[1727828239019,16.63,143.96,143.88,0.12518]
[1727828239216,1.3566,143.95,143.88,0.12518]
[1727828239821,16.63,143.94,143.88,0.12518]
[1727828240325,16.63,143.92,143.88,0.12518]
[1727828240523,2.7803,143.89,143.88,0.12518]
[1727828242922,2.7805,143.88,143.87,0.12502]
[1727828243119,3.4938143,143.89,143.8,16.63]
[1727828243318,2.6749,143.91,143.82,16.63]
[1727828243520,3.50354831,143.9,143.82,16.63]
[1727828244123,2.6749,143.91,143.83,16.63]
[1727828244318,2.6749,143.91,143.85,16.63]
[1727828244525,2.6749,143.91,143.84,2.7812]
[1727828244723,2.7804,143.89,143.84,2.7812]
[1727828244925,2.7804,143.89,143.83,16.63]
[1727828245118,2.7804,143.89,143.85,2.781]
[1727828245614,0.12502,143.93,143.85,16.63]
[1727828245819,0.12502,143.93,143.89,16.63]
[1727828246525,0.12502,143.93,143.9,2.78]
[1727828247026,0.12502,143.93,143.89,16.63]
[1727828247729,2.90452,143.93,143.89,19.4101]
[1727828247929,0.12502,143.93,143.89,16.63]
[1727828248333,0.12502,143.93,143.9,2.7799]
[1727828248523,0.12502,143.93,143.89,16.63]
[1727828249023,0.12502,143.93,143.91,2.7798]
[1727828249618,0.12502,143.93,143.89,16.63]
[1727828249932,0.12502,143.93,143.89,19.4102]
[1727828250135,0.12502,143.93,143.89,16.63]
[1727828250324,0.12502,143.93,143.89,19.4102]
[1727828250625,0.12502,143.93,143.89,16.63]
[1727828252133,0.12502,143.93,143.87,16.63]
[1727828252329,2.90452,143.93,143.89,2.7801]
[1727828253734,0.12502,143.93,143.86,16.63]
[1727828253934,0.12502,143.93,143.87,16.63]
[1727828254136,0.12502,143.93,143.89,16.63]
[1727828255625,0.12502,143.93,143.91,16.63]
[1727828255827,0.12502,143.99,143.91,16.63]
[1727828256034,0.12502,143.99,143.97,2.7786]
[1727828256228,0.12502,143.99,143.92,2.6291]
[1727828256526,16.75502,143.99,143.92,2.6291]
[1727828257226,0.12502,143.99,143.95,2.779]
[1727828257530,0.12502,143.99,143.92,19.2591]
[1727828258328,0.12502,143.99,143.94,16.63]
[1727828258835,0.12502,143.99,143.92,2.6291]
[1727828259030,2.779,143.96,143.92,5.4086]
[1727828259334,0.12502,143.99,143.92,2.6291]
[1727828259932,0.12502,143.99,143.95,16.63]
[1727828260337,0.12502,143.99,143.98,2.7785]
[1727828260525,0.12502,143.99,143.97,16.63]
[1727828261244,0.12502,143.99,143.98,2.7785]
[1727828261535,2.7777,144.03,143.99,2.7783]
[1727828261741,2.7777,144.03,143.98,1.39]
[1727828262130,0.12502,144.05,143.98,1.39]
[1727828262438,2.90232,144.05,143.99,16.63]
[1727828262842,2.90232,144.05,144.01,2.7778]
[1727828264045,2.7775,144.04,144.0,2.7781]
[1727828265230,0.12502,144.05,144.03,2.7776]
[1727828265440,0.12502,144.05,143.98,2.6785]
[1727828265441,0.12502,144.05,144.01,16.63]
[1727828265858,0.12502,144.05,144.02,2.7776]
[1727828266031,0.12502,144.05,144.01,16.63]
[1727828266640,0.12502,144.05,144.03,16.63]
[1727828266935,0.12502,144.11,144.03,16.63]
[1727828267134,16.63,144.07,143.99,0.12502]
[1727828267537,2.7773,144.05,144.01,2.7779]
[1727828268646,16.63,144.07,144.03,2.7775]
[1727828268647,2.777,144.06,144.03,2.7775]
[1727828268831,16.63,144.09,144.03,2.7775]
[1727828269037,16.63,144.09,144.0,16.63]
[1727828269238,2.7774,144.05,144.01,2.7779]
[1727828269432,2.7774,144.05,144.0,16.63]
[1727828269839,2.7774,144.05,144.01,2.7779]
[1727828270838,2.7773,144.05,144.01,2.7779]
[1727828271138,16.63,144.07,144.01,2.7779]
[1727828271648,3.49663696,144.1,144.01,2.7779]
[1727828271843,16.63,144.07,144.01,2.7779]
[1727828272438,2.7773,144.05,144.01,2.7779]
[1727828272741,16.63,144.07,144.01,2.7779]
[1727828273243,2.7771,144.06,144.01,2.7779]
[1727828273549,16.63,144.07,144.01,2.7779]
[1727828274037,2.7773,144.05,144.01,2.7779]
[1727828274441,16.63,144.07,144.0,2.7781]
[1727828275347,2.7775,144.04,144.0,2.7781]
[1727828275537,3.49364747,144.09,143.99,0.12502]
[1727828275843,16.63,144.09,144.02,2.7777]
[1727828276051,0.12502,144.11,144.02,16.63]
[1727828276246,0.12502,144.11,144.05,2.777]
[1727828276445,2.7767,144.08,144.02,16.63]
[1727828276647,16.63,144.1,144.02,16.63]
[1727828276849,16.63,144.1,144.0,16.63]
[1727828277051,2.7771,144.06,144.0,16.63]
[1727828277252,2.7771,144.06,144.02,2.7777]
[1727828277447,16.63,144.08,144.0,16.63]
[1727828277652,2.7771,144.06,144.0,16.63]
[1727828277939,16.63,144.08,144.02,2.7777]
[1727828279951,16.63,144.08,144.0,16.63]
[1727828280253,2.7769,144.07,144.0,16.63]
[1727828280448,16.63,144.1,144.01,1.3185]
[1727828281153,16.63,144.1,144.03,2.7775]
[1727828281352,0.12502,144.11,144.04,2.5932]
[1727828281747,16.75502,144.11,144.04,2.5932]
[1727828283343,16.75502,144.11,144.01,4.83464911]
[1727828283344,16.63,144.09,144.01,1.3185]
[1727828283552,16.63,144.07,144.01,1.3185]
[1727828284247,16.63,144.07,144.0,1.2737]
[1727828284453,2.7771,144.06,144.02,2.7777]
[1727828284648,16.63,144.07,144.0,1.2737]
[1727828284956,2.777,144.06,144.03,2.7775]
[1727828285155,16.63,144.09,144.0,1.2737]
[1727828285357,16.75502,144.11,144.01,16.63]
[1727828285550,2.7767,144.08,144.04,2.7772]
[1727828285757,16.75502,144.11,144.04,2.7772]
[1727828286657,2.7767,144.08,144.04,2.7772]
[1727828287342,2.7768,144.07,144.04,2.7772]
[1727828287743,16.75502,144.11,144.03,2.7775]
[1727828287946,2.777,144.06,144.03,2.7775]
[1727828288258,16.75502,144.11,144.03,2.7775]
[1727828288459,2.7769,144.07,144.03,2.7775]
[1727828288659,16.63,144.07,144.01,2.7778]
[1727828288961,2.7773,144.05,144.01,2.7778]
[1727828289561,16.63,144.07,144.01,2.7778]
[1727828289751,16.63,144.07,144.0,4.0517]
[1727828289946,16.63,144.08,144.0,1.2737]
[1727828290261,16.63,144.08,144.02,2.7777]
[1727828290262,2.7771,144.06,144.02,2.7777]
[1727828290956,16.63,144.08,144.02,2.7777]
[1727828291161,16.63,144.08,144.0,1.2737]
[1727828291946,2.7775,144.04,144.0,4.0517]
[1727828292662,16.63,144.05,143.99,0.12502]
[1727828293160,2.778,144.01,143.99,0.12502]
[1727828293560,16.63,144.05,143.99,0.12502]
[1727828293755,1.323,144.06,143.99,0.12502]
[1727828293756,2.7781,144.0,143.99,0.12502]
[1727828295659,76.343,144.06,143.99,0.12502]
[1727828296057,2.7778,144.02,143.99,0.12502]
[1727828296259,26.68,144.04,143.99,0.12502]
[1727828296959,2.7781,144.0,143.99,0.12502]
[1727828297264,26.68,144.04,143.99,0.12502]
[1727828297464,2.7781,144.0,143.99,0.12502]
[1727828305465,26.68,144.01,143.93,0.12502]
[1727828305670,1.3025,144.0,143.93,0.12502]
[1727828305875,0.12502,144.05,143.93,0.12502]
[1727828305876,2.7778,144.02,143.93,0.12502]
[1727828306269,1.42752,144.05,143.93,0.12502]
[1727828307474,2.7784,143.99,143.93,0.12502]
[1727828307667,26.68,144.02,143.93,0.12502]
[1727828307875,26.68,144.0,143.93,0.12502]
[1727828308170,4.80062632,143.99,143.93,0.12502]
[1727828308561,2.7793,143.94,143.93,0.12502]
[1727828310571,4.80062632,143.99,143.87,0.12502]
[1727828310572,26.68,143.95,143.87,0.12502]
[1727828310892,26.68,143.97,143.87,0.12502]
[1727828311069,2.7792,143.95,143.91,2.7798]
[1727828311466,26.68,143.97,143.88,3.40223012]
[1727828311676,2.7794,143.94,143.9,2.78]
[1727828311868,26.68,143.97,143.88,3.40223012]
[1727828312573,26.68,143.97,143.9,2.7799]
[1727828312574,2.7794,143.94,143.9,2.7799]
[1727828313174,2.7797,143.92,143.88,2.7804]
[1727828313677,2.779,143.96,143.92,2.7796]
[1727828314377,4.92564632,143.99,143.91,2.7799]
[1727828314773,4.92564632,143.99,143.88,26.68]
[1727828314965,4.92564632,143.99,143.9,2.7799]
[1727828315681,2.7792,143.95,143.91,2.7799]
[1727828316476,0.12502,143.99,143.9,26.68]
[1727828316676,0.12502,143.99,143.91,2.6148]
[1727828316878,0.12502,143.99,143.96,2.7788]
[1727828317080,0.12502,143.99,143.91,6.15128981]
[1727828317081,0.12502,143.99,143.93,26.68]
[1727828317479,0.12502,143.99,143.97,2.7787]
[1727828319183,0.12502,143.99,143.98,2.7785]
[1727828319684,0.12502,143.99,143.94,16.68]
[1727828319979,0.12502,143.99,143.96,2.7788]
[1727828320779,0.12502,143.99,143.94,16.68]
[1727828320986,2.90342,143.99,143.96,2.7789]
[1727828321279,0.12502,143.99,143.94,16.68]
[1727828321579,0.12502,143.99,143.97,2.7787]
[1727828321780,0.12502,143.99,143.94,16.68]
[1727828321986,0.12502,143.99,143.96,2.7788]
[1727828322175,0.12502,143.99,143.94,16.68]
[1727828322579,0.12502,143.99,143.93,16.68]
[1727828322773,0.12502,143.99,143.91,16.68]
[1727828322973,2.7791,143.96,143.92,2.7796]
[1727828323179,2.7791,143.96,143.91,16.68]
[1727828323378,2.7525,143.98,143.91,16.68]
[1727828323576,2.779,143.96,143.92,2.7795]
[1727828323881,2.7525,143.98,143.91,16.68]
[1727828324586,2.7525,143.98,143.93,2.7793]
[1727828324792,2.7525,143.98,143.91,16.68]
[1727828325185,2.7525,143.98,143.92,2.7795]
[1727828325388,2.7525,143.98,143.91,16.68]
[1727828325773,2.779,143.96,143.92,2.7796]
[1727828326272,2.7525,143.98,143.93,16.68]
[1727828326487,0.12502,143.99,143.95,16.68]
[1727828326877,0.12502,143.99,143.87,9.77893072]
[1727828326878,0.12502,143.99,143.98,2.7785]
[1727828327278,2.90222,144.05,144.01,2.7779]
[1727828327586,2.90222,144.05,143.98,16.68]
[1727828327587,0.12502,144.05,143.98,16.68]
[1727828328488,2.7778,144.02,143.98,2.7785]
[1727828331685,2.7781,144.01,143.97,2.7787]
[1727828332593,0.12502,144.05,143.96,2.7788]
[1727828332594,2.7782,144.0,143.96,2.7788]
[1727828334587,2.7782,144.0,143.97,2.7787]
[1727828336101,2.7786,143.98,143.95,29.459]
[1727828336489,2.7786,143.98,143.95,2.779]
[1727828336689,26.80502,144.05,143.93,4.12932]
[1727828336996,2.7787,143.98,143.94,2.7792]
[1727828337202,26.80502,144.05,143.93,6.26232898]
[1727828337500,2.778,144.01,143.95,26.68]
[1727828338098,0.12502,144.05,143.97,2.7786]
[1727828338400,0.12502,144.05,143.95,26.68]
[1727828338601,2.7779,144.02,143.98,2.7784]
[1727828338987,0.12502,144.05,143.95,26.68]
[1727828339398,2.778,144.01,143.97,2.7786]
[1727828340286,0.12502,144.05,143.98,2.7785]
[1727828341505,2.778,144.01,143.97,2.7786]
[1727828341894,0.12502,144.05,143.95,26.68]
[1727828342096,0.12502,144.05,143.97,26.68]
[1727828342300,0.12502,144.05,143.99,26.68]
[1727828342604,0.12502,144.05,144.01,2.7779]
[1727828343099,0.12502,144.05,144.02,30.10062146]
[1727828343297,0.12502,144.05,144.04,2.7774]
[1727828344093,0.12502,144.11,144.04,26.68]
[1727828344304,0.12502,144.11,144.09,26.68]
[1727828344505,0.12502,144.17,144.09,26.68]
[1727828344696,0.12502,144.17,144.15,2.7751]
[1727828344898,0.12502,144.17,144.14,26.68]
[1727828345203,0.12502,144.17,144.12,26.68]
[1727828345395,0.12502,144.17,144.09,26.68]
[1727828345795,0.12502,144.17,144.11,26.68]
[1727828345991,0.12502,144.17,144.11,30.15764303]
[1727828346210,0.12502,144.17,144.14,2.7753]
[1727828346395,0.12502,144.17,144.13,26.68]
[1727828346805,0.12502,144.17,144.15,2.7751]
[1727828347101,0.12502,144.17,144.16,26.68]
[1727828347308,2.7739,144.22,144.17,2.7748]
[1727828348112,2.7741,144.21,144.17,2.7748]
[1727828348417,0.12502,144.23,144.17,2.7748]
[1727828348903,2.89882,144.23,144.17,2.7748]
[1727828349106,0.12502,144.23,144.18,26.68]
[1727828349906,0.12502,144.23,144.19,2.7744]
[1727828350107,0.12502,144.23,144.18,26.68]
[1727828350305,0.12502,144.23,144.2,2.7741]
[1727828350702,0.12502,144.23,144.2,26.68]
[1727828351201,2.7741,144.21,144.17,3.9073]
[1727828351713,2.7743,144.21,144.17,3.9073]
[1727828352209,2.7743,144.2,144.17,3.9073]
[1727828352411,0.12502,144.23,144.17,2.586]
[1727828352608,0.12502,144.23,144.17,1.2961]
[1727828352906,0.12502,144.23,144.13,26.68]
[1727828353306,2.7744,144.2,144.13,26.68]
[1727828353505,0.12502,144.23,144.18,2.7745]
[1727828353704,0.12502,144.23,144.18,29.4545]
[1727828353908,0.12502,144.23,144.18,26.68]
[1727828354109,2.7741,144.22,144.18,26.68]
[1727828354507,0.12502,144.23,144.15,26.68]
[1727828354706,2.7744,144.2,144.15,29.4552]
[1727828354910,0.12502,144.23,144.15,26.68]
[1727828355112,0.12502,144.23,144.15,29.4551]
[1727828355311,0.12502,144.23,144.15,26.68]
[1727828355704,2.7748,144.18,144.15,26.68]
[1727828356399,2.7742,144.21,144.15,26.68]
[1727828356598,0.12502,144.23,144.15,26.68]
[1727828356808,0.12502,144.23,144.15,29.4552]
[1727828357215,2.7744,144.2,144.15,29.4552]
[1727828357709,0.12502,144.23,144.15,26.68]
[1727828358020,0.12502,144.23,144.2,26.68]
[1727828358310,2.7729,144.28,144.22,26.68]
[1727828358515,0.12502,144.29,144.25,26.68]
[1727828359604,0.12502,144.29,144.27,26.68]
[1727828360008,0.12502,144.29,144.28,2.7728]
[1727828360310,0.12502,144.47,144.28,101.62]
[1727828360512,0.12502,144.47,144.41,26.68]
[1727828360818,0.12502,144.47,144.43,26.68]
[1727828361013,0.12502,144.47,144.45,26.68]
[1727828361317,0.12502,144.53,144.45,26.68]
[1727828361617,0.12502,144.53,144.48,26.68]
[1727828362412,2.89312,144.53,144.48,26.68]
[1727828362610,0.12502,144.53,144.41,0.12502]
[1727828362812,2.89302,144.53,144.48,26.68]
[1727828363423,0.12502,144.53,144.48,26.68]
[1727828365521,2.89302,144.53,144.48,26.68]
[1727828365815,0.12502,144.53,144.48,26.68]
[1727828366017,0.12502,144.53,144.51,26.68]
[1727828366908,2.7675,144.56,144.51,26.68]
[1727828367214,2.7675,144.56,144.49,2.7686]
[1727828367418,2.7675,144.56,144.53,26.68]
[1727828368318,0.12502,144.59,144.53,26.68]
[1727828368319,2.7672,144.57,144.53,26.68]
[1727828370509,0.12502,144.59,144.53,26.68]
[1727828371609,0.12502,144.59,144.5,26.68]
[1727828372417,0.12502,144.59,144.52,26.68]
[1727828372915,0.12502,144.59,144.55,26.68]
[1727828375513,0.12502,144.59,144.57,26.68]
[1727828377313,2.89192,144.59,144.57,26.68]
[1727828377517,0.12502,144.59,144.54,26.68]
[1727828378724,2.7672,144.58,144.54,26.68]
[1727828379115,0.12502,144.59,144.54,29.4477]
[1727828379116,2.89182,144.59,144.54,29.4477]
[1727828379921,0.12502,144.59,144.57,26.68]
[1727828380434,2.767,144.58,144.57,26.68]
[1727828380727,0.12502,144.59,144.54,26.68]
[1727828380915,0.12502,144.59,144.57,26.68]
[1727828381120,0.12502,144.59,144.57,29.4471]
[1727828381529,2.7663,144.62,144.57,29.4471]
[1727828382423,2.7661,144.63,144.59,29.4468]
[1727828382626,0.12502,144.65,144.61,26.68]
[1727828383131,2.89072,144.65,144.61,26.68]
[1727828383328,0.12502,144.65,144.61,26.68]
[1727828383529,0.12502,144.65,144.59,26.68]
[1727828383530,0.12502,144.65,144.63,26.68]
[1727828384621,2.89072,144.65,144.63,26.68]
[1727828384832,0.12502,144.65,144.63,26.68]
[1727828385234,2.7659,144.64,144.63,26.68]
[1727828386028,0.12502,144.65,144.63,26.68]
[1727828386329,2.89082,144.65,144.63,26.68]
[1727828386736,0.12502,144.65,144.63,26.68]
[1727828387427,1.2728,144.69,144.63,26.68]
[1727828387428,2.7653,144.67,144.63,26.68]
[1727828387633,2.7623,144.7,144.66,26.68]
[1727828387939,1.19516494,144.69,144.66,26.68]
[1727828388139,0.12502,144.71,144.68,26.68]
[1727828388428,2.667,144.75,144.7,26.68]
[1727828388934,2.7643,144.73,144.7,26.68]
[1727828389727,2.7644,144.72,144.7,26.68]
[1727828390736,2.7642,144.73,144.7,26.68]
[1727828391432,2.7638,144.75,144.72,26.68]
[1727828391641,0.12502,144.77,144.72,26.68]
[1727828392028,2.7637,144.76,144.72,26.68]
[1727828392224,0.12502,144.77,144.72,26.68]
[1727828392733,2.7641,144.74,144.72,26.68]
[1727828393133,0.12502,144.77,144.7,26.68]
[1727828393326,2.7645,144.72,144.7,26.68]
[1727828394027,0.12502,144.77,144.7,26.68]
[1727828395133,2.7642,144.73,144.7,26.68]
[1727828395734,2.7644,144.72,144.7,26.68]
[1727828395934,0.12502,144.77,144.7,26.68]
[1727828396534,2.7645,144.72,144.7,26.68]
[1727828398346,0.12502,144.77,144.65,26.80502]
[1727828398550,1.1944723,144.76,144.65,26.80502]
[1727828399144,2.7651,144.69,144.65,26.80502]
[1727828400346,0.12502,144.77,144.65,26.80502]
[1727828400548,27.87453392,144.76,144.65,26.80502]
[1727828400845,2.7655,144.66,144.65,0.12502]
[1727828401551,32.2075,144.76,144.65,0.12502]
[1727828401751,1.19468056,144.75,144.65,0.12502]
[1727828402244,2.7655,144.66,144.65,0.12502]
[1727828402842,2.7666,144.6,144.59,0.12502]
[1727828404647,3.40650331,144.62,144.53,26.80502]
[1727828404861,2.7678,144.54,144.53,0.12502]
[1727828406857,2.7689,144.48,144.47,0.12502]
[1727828407255,26.68,144.56,144.47,0.12502]
[1727828408056,1.2943,144.55,144.47,0.12502]
[1727828408252,2.7689,144.48,144.47,0.12502]
[1727828408864,1.2943,144.55,144.47,0.12502]
[1727828409667,2.7689,144.49,144.47,0.12502]
[1727828410867,2.7683,144.52,144.47,0.12502]
[1727828411164,1.2943,144.55,144.47,0.12502]
[1727828412071,2.7684,144.51,144.48,26.68]
[1727828412466,1.2943,144.55,144.48,26.68]
[1727828412769,1.2943,144.55,144.47,0.12502]
[1727828412770,2.7687,144.5,144.47,0.12502]